[Event "85th Tata Steel Challengers 2023"]
[Site "Wijk aan Zee"]
[Date "2023.01.28"]
[Round "12.6"]
[White "Warmerdam, Max"]
[Black "Vaishali, Rameshbabu"]
[Result "1-0"]
[ECO "A34"]
[WhiteElo "2616"]
[BlackElo "2425"]
[Annotator "TA"]
[PlyCount "83"]
[EventDate "2023.01.10"]
[EventType "tourn"]
[EventCountry "NED"]
[SourceTitle "playchess.com"]
[Source "ChessBase"]
[SourceQuality "1"]
[TimeControl "40/6000+30:30/3000+30:900+30"]

{[%evp 11,83,4,13,4,20,22,36,0,0,-21,-17,-35,-31,-37,-22,-34,0,0,-18,0,0,-22,-10,-10,-10,-1,-9,-8,32,29,55,52,70,72,83,75,220,222,270,266,283,274,622,612,887,885,838,572,545,271,326,324,280,277,252,249,413,416,405,396,881,839,2118,2127,2129,2089,1832,1726,1370,1176,1399,1376,1162,1093]} 1. Nf3 {[%emt 0:00:03]} Nf6 {[%emt 0:01:13]} 2. c4 {[%emt 0:00:13]} c5 {[%emt 0:00:13]} 3. g3 {[%emt 0:00:14]} Nc6 {[%emt 0:00:54]} 4. Bg2 {[%emt 0:00:18]} d5 {[%emt 0:00:25]} 5. cxd5 {[%emt 0:00:08]} Nxd5 {[%emt 0:00:04]} 6. Nc3 {[%emt 0:00:14]} g6 {[%emt 0:00:22]} 7. h4 {[%emt 0:08:23][%cal Bh2h4,Bh4h5,Bh5h6][%mdl 32] A34: Symmetrical English: 2 Nc3, lines with ...d5.} (7. d4 $5) 7... Bg7 {[%emt 0:00:15]} 8. h5 {[%emt 0:00:34]} Bf5 {[%emt 0:04:14]} 9. h6 {[%emt 0:09:01] White is slightly better.} (9. Qb3 $5 {[%cal Rc3d5]} Ndb4 10. Kf1 $11) 9... Bf6 {[%emt 0:01:11] [#]} 10. Nh2 $146 {[%emt 0:02:39]} ({Predecessor:} 10. O-O O-O 11. Nh2 Nxc3 12. dxc3 Qc8 13. Be3 Bh3 14. Bxc5 Bxg2 15. Kxg2 Bg5 16. Qd5 Bxh6 {½-½ Tabatabaei,M (2660)-Alekseenko,K (2672) Sitges Sunway op 9th 2022 (8)}) 10... Nxc3 {[%emt 0:05:06]} 11. bxc3 {[%emt 0:02:03]} Qd7 {[%emt 0:02:00]} 12. Nf1 {[%emt 0:02:10]} O-O {[%emt 0:12:41]} 13. Ne3 {[%emt 0:00:27]} Rfd8 {[%emt 0:04:58]} 14. Ba3 {[%emt 0:21:35]} Rac8 {[%emt 0:08:53]} 15. Bxc5 {[%emt 0:06:45]} b6 {[%emt 0:30:19]} 16. Ba3 {[%emt 0:04:06][%cal Bc5a3,Ba3c1,Bc1e3][%mdl 32]} Na5 {[%emt 0:00:34]} 17. Nd5 {[%emt 0:05:54]} Nc4 {[%emt 0:14:50]} 18. Nxf6+ {[%emt 0:02:14]} exf6 {[%emt 0:00:03]} 19. Bc1 {[%emt 0:00:07]} Bg4 {[%emt 0:06:48][%cal Og4e2]} 20. d3 {[%emt 0:13:33]} Ne5 {[%emt 0:06:15]} 21. Qc2 {[%emt 0:03:15]} Nc6 {[%emt 0:05:41][%cal Oc6d4] aiming for ...Nd4!} 22. Qb2 {[%emt 0:04:50]} Re8 {[%emt 0:00:32]} 23. Be3 {[%emt 0:00:58]} Ne7 {[%emt 0:01:08] Loses the game.} (23... Qd6 $16 {was necessary.}) 24. c4 $18 {[%emt 0:07:40]} Qe6 {[%emt 0:01:07] [#] Black is weak on the dark squares} 25. Rh4 $1 {[%emt 0:03:37]} Rcd8 {[%emt 0:02:02]} 26. O-O-O {[%emt 0:06:15][%cal Oh4g4]} (26. Rxg4 Qxg4 27. Qxf6 Nf5 $18) 26... b5 $2 {[%emt 0:01:00] [#]} (26... Nf5 27. Rxg4 (27. Bd5 Qc8 $16) 27... Nxe3 28. fxe3 Qxg4) 27. Rxg4 $1 {[%emt 0:02:10][%mdl 576] Deflection} Qxg4 {[%emt 0:00:03]} (27... bxc4 28. Rxc4) 28. Qxf6 {[%emt 0:00:05][%csl Gh6][%cal Rf6g7]} Nf5 {[%emt 0:00:11] Against Qg7+} 29. Be4 {[%emt 0:00:05]} (29. cxb5 Rc8+ 30. Bc6 a6 $17) (29. Bd5 Rxd5 30. cxd5 Qb4 $16) 29... bxc4 {[%emt 0:00:53]} 30. f3 {[%emt 0:01:23]} (30. Bxa7 $2 cxd3 31. exd3 Rc8+ 32. Kd2 Rxe4 33. dxe4 Qxe4 $19) (30. Bf3 $142 Qh3 31. Rh1 (31. dxc4 Rxd1+ 32. Kxd1 Nxe3+ {[%mdl 64] Remove Defender} 33. fxe3 Qxh6 $17) 31... Qxh1+ 32. Bxh1 cxd3 33. exd3 (33. Bxa7 $2 dxe2 34. Qc3 e1=Q+ $19) 33... Rxd3 34. Bf3) 30... Qxg3 {[%emt 0:00:27] ...Qe5 is the strong threat.} 31. Bxf5 {[%emt 0:00:26][%csl Gh6][%cal Rf6g7]} Qe5 {[%emt 0:00:14]} (31... gxf5 32. Rg1 (32. dxc4 Rxd1+ 33. Kxd1 Qe5 $19) (32. dxc4 $2 Rxd1+ 33. Kxd1 Qe5 $19)) 32. Qxe5 {[%emt 0:00:19]} Rxe5 {[%emt 0:00:03]} 33. Be4 {[%emt 0:00:35][%cal Bf5e4,Be4b7,Bb7d5,Bd5g8][%mdl 32]} (33. Bxa7 $2 Rxf5 34. Bb6 Rc8 $17) 33... f5 $2 {[%emt 0:01:00]} (33... cxd3 34. Rxd3 Rxd3 35. exd3 Kf8) 34. Bf4 {[%emt 0:02:08]} (34. dxc4 $2 Rxd1+ 35. Kxd1 fxe4 36. Bxa7 exf3 37. exf3 Ra5 $19) 34... Re6 {[%emt 0:00:49]} 35. Bb7 {[%emt 0:00:05]} (35. dxc4 $2 {too greedy.} Rxd1+ 36. Kxd1 fxe4 $19) 35... Rxe2 $2 {[%emt 0:00:59]} (35... cxd3 36. e4 (36. exd3 Rd7 $17) 36... d2+ 37. Bxd2 Kf8) 36. dxc4 {[%emt 0:00:11][%cal Bd3c4,Bc4c5,Bc5c6][%mdl 32] White is clearly winning.} Rxd1+ {[%emt 0:00:31]} 37. Kxd1 {[%emt 0:00:04]} Rb2 {[%emt 0:00:27]} 38. Bd5+ {[%emt 0:00:07]} Kf8 {[%emt 0:00:02]} 39. c5 {[%emt 0:00:13] Strongly threatening c6.} Ke7 {[%emt 0:00:18]} 40. Bg8 {[%emt 0:01:04]} Rb5 {[%emt 0:01:11]} 41. Bd6+ {[%emt 0:53:37]} Kf6 {[%emt 0:50:20]} 42. c6 {[%emt 0:00:00] A cool game by Warmerdam.   Weighted Error Value: White=0.36/Black=0.47} 1-0

[Event "85th Tata Steel Challengers 2023"]
[Site "Wijk aan Zee"]
[Date "2023.01.28"]
[Round "12.7"]
[White "Mishra, Abhimanyu"]
[Black "Pechac, Jergus"]
[Result "1-0"]
[ECO "C54"]
[WhiteElo "2559"]
[BlackElo "2637"]
[Annotator "TA"]
[PlyCount "139"]
[EventDate "2023.01.10"]
[EventType "tourn"]
[EventCountry "NED"]
[SourceTitle "playchess.com"]
[Source "ChessBase"]
[SourceQuality "1"]
[TimeControl "40/6000+30:30/3000+30:900+30"]

{[%evp 12,139,16,16,10,13,22,8,9,-12,0,-5,-3,0,47,35,32,31,35,21,60,44,62,0,89,0,0,0,0,0,0,0,0,0,0,0,14,8,0,14,0,5,158,149,149,26,149,143,289,289,285,218,273,258,278,278,271,271,241,224,285,285,281,36,14,0,278,154,153,116,123,0,164,144,147,138,148,143,160,172,193,141,316,306,306,35,35,39,35,43,261,265,258,250,250,250,450,458,458,458,453,445,423,289,227,227,607,600,593,585,916,866,827,738,718,718,672,377,759,712,29976,29979,29978,29979,29978,29979,29982,29983,29983,29982]} 1. e4 {[%emt 0:00:03]} e5 {[%emt 0:00:12]} 2. Nf3 {[%emt 0:00:06]} Nc6 {[%emt 0:00:08]} 3. Bc4 {[%emt 0:00:30]} Nf6 {[%emt 0:00:43]} 4. d3 {[%emt 0:00:44]} Bc5 {[%emt 0:00:49]} 5. c3 {[%emt 0:00:22]} d6 {[%emt 0:01:19]} 6. O-O {[%emt 0:00:25]} h6 {[%emt 0:01:54]} 7. Re1 {[%emt 0:03:15]} O-O {[%emt 0:01:02] C54: Giuoco Piano: 4 c3 Nf6, main lines with 5 d4 and 5 d3.} 8. Nbd2 {[%emt 0:00:46]} (8. b4 $5 Bb6 $8 9. a4 $11) 8... Bb6 {[%emt 0:01:27]} 9. b4 {[%emt 0:06:49]} Ne7 {[%emt 0:03:53] The position is equal.} 10. Bb3 {[%emt 0:09:44]} c6 {[%emt 0:00:29]} 11. a4 {[%emt 0:01:57]} Ng6 {[%emt 0:01:21] [#]} 12. d4 $1 $146 {[%emt 0:07:49][%mdl 8] A relevant novelty.} (12. a5 $5 Bc7 $8 13. d4 $11) ({Predecessor:} 12. a5 Bc7 13. d4 Re8 14. dxe5 dxe5 15. Qc2 Nh7 16. Bc4 Qf6 17. g3 Bh3 18. Be2 {½-½ Dominguez Perez,L (2758)-So,W (2772) Saint Louis Blitz 2021 (1)}) 12... d5 {[%emt 0:10:10]} (12... Re8 $11 {might be stronger.}) 13. a5 {[%emt 0:14:18]} (13. Nxe5 Nxe5 14. a5 (14. dxe5 Ng4 $15) 14... Nd3 15. axb6 Nxe1 16. Qxe1 Qxb6 $15) 13... Bc7 {[%emt 0:00:46]} 14. exd5 {[%emt 0:03:11]} exd4 {[%emt 0:03:04]} 15. Nxd4 {[%emt 0:01:57]} Nxd5 {[%emt 0:03:33]} 16. Ne4 {[%emt 0:02:46][%cal Oa5a6]} Re8 {[%emt 0:07:18][%cal Oc7h2]} 17. h3 {[%emt 0:06:19]} (17. g3 $14) 17... Be5 {[%emt 0:15:57]} (17... Nxc3 $1 $11 18. Nxc3 (18. Bxf7+ Kxf7 19. Qf3+ Kg8 $11) 18... Rxe1+ 19. Qxe1 Qxd4 20. Qe8+ Kh7 21. Bxf7 Ne7 22. Qxe7 Qxc3 23. Qe4+ Bf5 24. Qxf5+ Kh8) 18. Ra2 {[%emt 0:08:42]} (18. a6 $1 $16) 18... Bxd4 $11 {[%emt 0:08:50]} 19. Qxd4 {[%emt 0:01:03]} f5 {[%emt 0:00:16]} 20. Bxh6 {[%emt 0:05:08][%csl Gh6][%cal Rd4g7]} Qd7 {[%emt 0:00:03][%cal Oe8e4]} 21. Nf6+ {[%emt 0:18:08][%mdl 64] Discovered Attack} gxf6 {[%emt 0:00:14]} 22. Rxe8+ {[%emt 0:00:12]} Qxe8 {[%emt 0:00:06]} 23. Qxf6 $40 {[%emt 0:00:29][%csl Gh6][%cal Rf6g7][%mdl 128] Black needs to defend precisely.} Qe1+ {[%emt 0:11:41]} (23... Qf7 $5 {[%cal Rf7f6]} 24. Qd8+ Kh7 $15) 24. Kh2 {[%emt 0:00:06][%csl Gh6][%cal Rf6g7] Dancing on a razor blade.} Qe5+ {[%emt 0:00:06]} 25. Qxe5 {[%emt 0:00:05]} Nxe5 {[%emt 0:00:05]} 26. Re2 {[%emt 0:00:22]} Nf7 {[%emt 0:02:17]} (26... Ng6 $11) 27. Bxd5 $16 {[%emt 0:02:08]} cxd5 {[%emt 0:00:06]} 28. Re8+ {[%emt 0:00:05]} Kh7 {[%emt 0:00:05]} 29. Bf4 {[%emt 0:00:07][%mdl 1024] White has strong compensation.} b5 {[%emt 0:01:43]} (29... Nh8 $16) 30. a6 $1 $18 {[%emt 0:02:37]} Nh8 {[%emt 0:01:43]} 31. Kg3 {[%emt 0:07:29]} Ng6 {[%emt 0:00:07]} 32. Bd6 {[%emt 0:01:27]} Kg7 {[%emt 0:02:04]} 33. h4 {[%emt 0:00:40][%cal Bh3h4,Bh4h5][%mdl 32]} Kf7 {[%emt 0:00:18]} 34. Rd8 {[%emt 0:00:05]} f4+ {[%emt 0:01:06]} 35. Bxf4 {[%emt 0:01:46]} Ne7 {[%emt 0:00:03][%cal Od5d4]} 36. h5 {[%emt 0:01:35]} Nc6 {[%emt 0:00:03]} 37. Rd6 {[%emt 0:00:33]} (37. Rxd5 $18 Bxa6 38. Rd7+ Kg8 39. h6) 37... Ne7 $14 {[%emt 0:00:04]} 38. Rd8 $2 {[%emt 0:00:05][%mdl 8192]} (38. Kf3 $11) 38... Nc6 $1 $18 {[%emt 0:00:03]} 39. Rh8 {[%emt 0:00:52]} (39. Rxd5 $18 {Hoping for h6.} Bxa6 40. Rd6 Rg8+ 41. Kh4) 39... Kg7 $16 {[%emt 0:00:48]} 40. Re8 {[%emt 0:00:24]} Kf7 {[%emt 0:00:06]} 41. Rh8 {[%emt 0:19:52] Threatens to win with Rh7+. White is much more active.} Kg7 {[%emt 0:02:21] Prevents Rh7+} 42. Rh6 {[%emt 0:00:15]} Ne7 {[%emt 0:00:45]} 43. Kf3 {[%emt 0:04:19]} Bf5 {[%emt 0:07:33]} 44. Rd6 {[%emt 0:05:57]} Kf7 {[%emt 0:10:02]} 45. g4 {[%emt 0:11:34]} Be6 {[%emt 0:00:44]} 46. Be3 {[%emt 0:00:36]} (46. Be5 $18) 46... Rf8 $2 {[%emt 0:08:48]} (46... Rg8 $16) 47. Bd4 $18 {[%emt 0:04:13]} (47. Bxa7 Nc8 48. Bb8 Rg8 $18) 47... Rg8 {[%emt 0:04:35]} 48. Bxa7 $2 {[%emt 0:00:11]} (48. h6 $1 $18 {[%cal Rh6h7] aiming for h7.} Bxg4+ 49. Kf4) 48... Bxg4+ $14 {[%emt 0:01:06]} 49. Kf4 {[%emt 0:00:11] And now Bd4 would win.} Bxh5 {[%emt 0:01:09]} 50. f3 {[%emt 0:03:11] Dodges Rg4+. Strongly threatening Bd4.} Rg3 $2 {[%emt 0:29:46] [#] White leaves nothing to chance now.} 51. Bd4 $1 $18 {[%emt 0:06:19]} Rxf3+ {[%emt 0:00:29]} 52. Kg5 {[%emt 0:00:04]} Rf5+ {[%emt 0:16:46] [#]} 53. Kh4 $1 {[%emt 0:00:01]} Bd1 $2 {[%emt 0:00:28]} (53... Ng6+ {was worth a try.} 54. Kh3 Rf1) 54. a7 {[%emt 0:03:52]} Rh5+ {[%emt 0:00:02]} 55. Kg3 {[%emt 0:00:06] White wants to mate with Rf6+.} Nf5+ {[%emt 0:00:03]} 56. Kg2 {[%emt 0:00:59]} ({Weaker is} 56. Kf4 Nxd6 57. a8=Q (57. a8=B $2 Rf5+ 58. Kg3 Ne4+ 59. Kg2 Bf3+ 60. Kf1 Rh5 $19) 57... Rf5+ 58. Kg3 (58. Ke3 Nc4+ 59. Kd3 Rf3+ $17) 58... Ne4+ 59. Kh2 Rh5+ 60. Kg2 Rg5+ 61. Kf1 Bb3 62. Qb7+ Kg6 $18) 56... Rg5+ {[%emt 0:02:58]} (56... Nxd6 $2 57. a8=Q $18 (57. a8=B $2 Ne4 $19)) 57. Kf1 {[%emt 0:00:23]} Nxd6 {[%emt 0:04:49]} 58. a8=Q {[%emt 0:00:03]} (58. a8=B $2 {loses.} Bb3 59. Kf2 Ke6 $19) 58... Ne4 $2 {[%emt 0:00:13]} (58... Bb3 59. Ke1 Bc4 60. Qa7+ Ke6) 59. Qb7+ {[%emt 0:00:48]} Kg6 {[%emt 0:00:09]} 60. Qxb5 {[%emt 0:00:50] Black must now prevent Qe8+.} Bb3 {[%emt 0:01:09]} 61. Qe8+ {[%emt 0:00:00]} Kf5 {[%emt 0:00:00]} 62. Qf7+ {[%emt 0:00:00]} Kg4 {[%emt 0:00:00]} 63. Kg2 {[%emt 0:00:00] Qf3+ is the strong threat.} Rf5 {[%emt 0:00:00] Against Qf3+} 64. Qe6 {[%emt 0:00:00]} Bd1 $2 {[%emt 0:00:00]} (64... Bc4 65. Be3 Bf1+ 66. Kh2 Nf6) 65. b5 {[%emt 0:00:00][%cal Bb4b5,Bb5b6,Bb6b7][%mdl 32] White threatens b6 and mate.} Ng5 {[%emt 0:00:00] [#]} 66. Qxf5+ $3 {[%emt 0:00:40][%mdl 512] White mates.} Kxf5 {[%emt 0:00:00]} 67. b6 {[%emt 0:00:03]} Bf3+ {[%emt 0:00:00]} 68. Kg1 {[%emt 0:00:42]} Ne6 {[%emt 0:00:00]} 69. b7 {[%emt 0:00:07]} Nxd4 {[%emt 0:00:00]} 70. cxd4 {[%emt 0:00:05] A superb game by Mishra.   Weighted Error Value: White=0.28 (precise) /Black=0.43} (70. b8=B $2 {is the wrong capture.} Nb5 71. Kf2 Ke4 $19) 1-0

[Event "85th Tata Steel Challengers 2023"]
[Site "Wijk aan Zee"]
[Date "2023.01.29"]
[Round "13.1"]
[White "Donchenko, Alexander"]
[Black "Ivic, Velimir"]
[Result "1-0"]
[ECO "D14"]
[WhiteElo "2627"]
[BlackElo "2585"]
[Annotator "TA"]
[PlyCount "107"]
[EventDate "2023.01.10"]
[EventType "tourn"]
[EventCountry "NED"]
[SourceTitle "playchess.com"]
[Source "ChessBase"]
[SourceQuality "1"]
[TimeControl "40/6000+30:30/3000+30:900+30"]

{[%evp 20,107,8,8,13,9,11,9,7,8,7,8,13,7,7,6,14,9,16,22,45,31,35,31,54,54,54,54,54,54,81,86,117,117,127,127,131,118,138,115,121,108,170,112,112,112,112,112,170,167,194,25,25,25,41,25,141,12,13,12,13,13,220,156,156,156,2918,2506,8952,4702,2564,490,8952,8952,8952,8403,29968,29969,29969,29970,29956,29956,29946,12782,29980,29981,29981,29982,29982,29982]} 1. d4 {[%emt 0:00:04]} d5 {[%emt 0:00:21]} 2. c4 {[%emt 0:00:07]} c6 {[%emt 0:00:17]} 3. Nf3 {[%emt 0:00:09]} Nf6 {[%emt 0:00:11]} 4. cxd5 {[%emt 0:00:15]} cxd5 {[%emt 0:00:40]} 5. Nc3 {[%emt 0:00:09]} Nc6 {[%emt 0:01:31]} 6. Bf4 {[%emt 0:00:14]} Bf5 {[%emt 0:01:59]} 7. e3 {[%emt 0:01:31]} e6 {[%emt 0:00:32]} 8. Qb3 {[%emt 0:00:17]} Bb4 {[%emt 0:01:45]} 9. Bb5 {[%emt 0:00:16]} O-O {[%emt 0:03:07]} 10. Bxc6 {[%emt 0:00:39] Nowadays more popular than 10.0-0.} Bxc3+ {[%emt 0:00:07]} 11. Qxc3 {[%emt 0:00:05]} Rc8 {[%emt 0:00:29][%mdl 64] [#] Pin. D14: Slav Defence: Exchange variation with ...Bf5.} 12. Ne5 $1 {[%emt 0:00:20][%cal Oe1g1]} Ng4 {[%emt 0:01:20]} 13. Nxg4 {[%emt 0:00:14]} Bxg4 {[%emt 0:00:55] [#] The position is equal.} 14. Qb4 $1 {[%emt 0:00:10]} Rxc6 {[%emt 0:01:52] Black is weak on the dark squares} 15. Qxb7 {[%emt 0:00:09]} Qc8 {[%emt 0:05:26]} (15... Rb6 16. Qxa7 Rxb2 17. O-O $14) (15... Qa5+ {feels hotter.} 16. b4 Qa4 17. O-O Be2) 16. Qxc8 {[%emt 0:00:14]} Rfxc8 {[%emt 0:00:03]} 17. O-O {[%emt 0:00:09]} f6 {[%emt 0:14:51] [#]} 18. h4 $146 {[%emt 0:03:22]} ({Predecessor:} 18. b4 a6 19. a4 Bf5 20. h3 Rb6 21. Rfc1 Rc4 22. b5 axb5 23. axb5 Rxc1+ 24. Rxc1 Rxb5 25. Rc8+ Kf7 26. Rc7+ Kg8 27. Rc8+ Kf7 28. Rc7+ Kg8 {½-½ Zhang,P (2638)-Zhou,W (2563) CHN-ch Xinghua Jiangsu 2009 (10)}) 18... Be2 {[%emt 0:08:54]} 19. Rfe1 {[%emt 0:01:08]} Rc2 {[%emt 0:00:24]} 20. b3 {[%emt 0:02:25]} R8c6 {[%emt 0:05:54]} 21. Bb8 {[%emt 0:05:04]} Ra6 {[%emt 0:17:50]} 22. a4 {[%emt 0:02:10]} Rb6 {[%emt 0:01:29]} 23. Bxa7 {[%emt 0:00:29]} Rxb3 {[%emt 0:00:04]} 24. a5 {[%emt 0:04:42]} Bc4 {[%emt 0:11:14]} 25. Bc5 {[%emt 0:18:43]} Rbb2 {[%emt 0:01:53]} 26. Reb1 $1 {[%emt 0:00:25]} (26. a6 $2 Rxf2 27. Kh2 (27. a7 $2 Rxg2+ 28. Kh1 Rh2+ 29. Kg1 Rbg2#) 27... Rxg2+ 28. Kh3 Bd3 $19) 26... Ba6 {[%emt 0:08:44]} (26... Rxf2 $2 27. Rxb2 Rxb2 28. a6 Bxa6 29. Rxa6 $18) 27. Ba3 $1 {[%emt 0:01:02]} Rxb1+ {[%emt 0:10:20]} 28. Rxb1 $16 {[%emt 0:00:26][%mdl 4096] Endgame Rb6 is the strong threat. KRB-KRB} Ra2 {[%emt 0:00:11]} 29. Rb8+ {[%emt 0:14:34]} Kf7 {[%emt 0:00:05]} 30. Ra8 {[%emt 0:00:05]} Rxa3 {[%emt 0:04:17] KRB-KR} (30... Bd3 $16 {was called for.}) 31. Ra7+ {[%emt 0:02:10]} (31. Rxa6 $18 e5 32. Ra7+ Ke6 33. Rxg7) 31... Kg6 {[%emt 0:06:01]} 32. Rxa6 {[%emt 0:00:17] KR-KR} Kf5 {[%emt 0:00:08]} 33. Ra7 {[%emt 0:25:10]} Kg6 {[%emt 0:00:43]} (33... h5 $16 34. a6 (34. Rxg7 Rxa5 35. g3 Rb5 $16) 34... e5) 34. a6 $18 {[%emt 0:09:49]} e5 {[%emt 0:01:49]} 35. Ra8 $2 {[%emt 0:01:44]} (35. dxe5 $1 $18 fxe5 36. g3) 35... exd4 $11 {[%emt 0:01:03]} 36. exd4 {[%emt 0:00:04]} Kf5 {[%emt 0:00:19]} 37. a7 {[%emt 0:08:36] Kf1 would be deadly.} (37. Kf1 $5 {[%cal Ra6a7]}) 37... Kg4 {[%emt 0:00:29]} (37... Ra1+ $11 38. Kh2 Ra2) 38. Rh8 {[%emt 0:00:13]} (38. Kf1 $16) 38... Rxa7 {[%emt 0:00:36]} 39. Rxh7 {[%emt 0:00:03]} Kf5 {[%emt 0:01:22]} 40. h5 {[%emt 0:00:24][%cal Bh4h5,Bh5h6,Bh6h7][%mdl 32] Hoping for Kh2.} Ra1+ {[%emt 0:00:34]} (40... Kg5 $11) 41. Kh2 $16 {[%emt 0:50:03]} g6 {[%emt 0:18:27] [#]} 42. g4+ {[%emt 0:00:00]} Kg5 $2 {[%emt 0:00:05] This costs Black the game.} (42... Kxg4 $16 43. hxg6 Ra8) 43. Rg7 $18 {[%emt 0:00:00]} Kxg4 {[%emt 0:06:02] [#]} 44. h6 $1 {[%emt 0:00:00][%cal Oh6h7] Threatening mate with h7!} ({Worse is} 44. Rxg6+ Kxh5 45. Rxf6 Kg4 $11) 44... Ra8 {[%emt 0:02:29] Repels h7} 45. Rxg6+ {[%emt 0:00:00]} (45. h7 $142) 45... Kf5 {[%emt 0:01:11]} (45... Kh5 $142 46. Rxf6 Kg5) 46. Rg7 {[%emt 0:00:00] White threatens Kg3 and mate.} Rh8 {[%emt 0:02:27]} 47. h7 {[%emt 0:00:00] Kg3 would kill now.} Ke4 {[%emt 0:00:06]} 48. Kg3 {[%emt 0:00:00]} Kxd4 {[%emt 0:00:10]} 49. Kf4 {[%emt 0:00:00]} Kd3 {[%emt 0:00:05]} 50. Re7 {[%emt 0:00:00]} d4 {[%emt 0:02:55]} 51. Kf5 {[%emt 0:00:00]} Kc2 {[%emt 0:01:24]} 52. Kxf6 {[%emt 0:00:00] White mates.} d3 {[%emt 0:00:05]} 53. Kg7 {[%emt 0:00:00]} d2 {[%emt 0:00:05]} 54. Rc7+ {[%emt 0:00:00] Weighted Error Value: White=0.34/Black=0.43} ({And not} 54. Kxh8 d1=Q 55. Kg8 Qd8+ 56. Kf7 Kc3 $11) 1-0

[Event "85th Tata Steel Challengers 2023"]
[Site "Wijk aan Zee"]
[Date "2023.01.29"]
[Round "13.2"]
[White "Roebers, Eline"]
[Black "Yilmaz, Mustafa"]
[Result "0-1"]
[ECO "B90"]
[WhiteElo "2361"]
[BlackElo "2609"]
[Annotator "TA"]
[PlyCount "70"]
[EventDate "2023.01.10"]
[EventType "tourn"]
[EventCountry "NED"]
[SourceTitle "playchess.com"]
[Source "ChessBase"]
[SourceQuality "1"]
[TimeControl "40/6000+30:30/3000+30:900+30"]

{[%evp 10,70,22,8,27,21,28,21,18,0,0,0,0,-8,0,-10,-11,-34,-23,-25,-13,-25,0,0,0,15,8,8,75,-32,-23,-31,0,0,22,-10,-8,-12,-10,-9,-9,-9,-14,-68,-49,-53,-27,-22,-22,-36,-26,-49,0,0,33,-8,-6,-121,-117,-195,-187,-625,-622]} 1. e4 {[%emt 0:00:03]} c5 {[%emt 0:00:05]} 2. Nf3 {[%emt 0:00:03]} d6 {[%emt 0:00:04]} 3. d4 {[%emt 0:00:03]} cxd4 {[%emt 0:00:05]} 4. Nxd4 {[%emt 0:00:04]} Nf6 {[%emt 0:00:05]} 5. Nc3 {[%emt 0:00:03]} a6 {[%emt 0:00:04]} 6. Bd3 {[%emt 0:00:07]} Bd7 {[%emt 0:08:51] B90: Sicilian Najdorf: Unusual White 6th moves, 6 Be3 Ng4 and 6 Be3 e5.} 7. f4 {[%emt 0:06:43]} Nc6 {[%emt 0:03:08]} 8. Nf3 {[%emt 0:11:44]} g6 {[%emt 0:07:53] [#] The position is equal.} 9. a4 $146 {[%emt 0:04:13]} ({Predecessor:} 9. O-O Bg7 10. Nd5 Nxd5 11. exd5 Nd4 12. Nxd4 Bxd4+ 13. Kh1 Bg7 14. f5 Qa5 15. Qe2 gxf5 {1-0 Chojnowski,M (2147)-Gosek,Z (2070) POL-ch blind 36th 2007 (9)}) 9... Bg7 {[%emt 0:02:19]} 10. O-O {[%emt 0:01:18]} O-O {[%emt 0:02:02]} 11. Qe1 {[%emt 0:01:18]} Nb4 {[%emt 0:09:51]} 12. a5 {[%emt 0:08:51]} b6 {[%emt 0:04:18]} 13. axb6 {[%emt 0:03:08]} (13. e5 $5 {[%cal Re5f6]} Nxd3 14. cxd3 $11) 13... Qxb6+ {[%emt 0:00:07]} 14. Kh1 {[%emt 0:00:46]} Rfb8 {[%emt 0:09:34]} 15. Qh4 {[%emt 0:10:41]} Qd8 {[%emt 0:10:55]} 16. e5 {[%emt 0:23:04]} Nxd3 {[%emt 0:02:25]} 17. cxd3 {[%emt 0:01:03]} Ne8 {[%emt 0:00:29]} 18. Nd5 {[%emt 0:10:17] aiming for f5.} f6 {[%emt 0:00:46] [#]} (18... Bf8 $11 {remains equal.}) 19. Re1 {[%emt 0:02:09]} (19. f5 $1 $16 {[%cal Rf5g6]} dxe5 20. fxg6 hxg6 21. Nxe5) 19... e6 $15 {[%emt 0:06:18]} 20. Nc3 {[%emt 0:03:52]} dxe5 {[%emt 0:15:52]} 21. fxe5 {[%emt 0:00:07]} Bc6 {[%emt 0:00:07]} 22. Qh3 {[%emt 0:03:57]} (22. Ne4 {looks sharper.} fxe5 23. Nfg5 h6 24. Qh3) 22... Bxf3 {[%emt 0:03:47]} 23. Qxf3 {[%emt 0:00:22]} fxe5 {[%emt 0:07:55]} 24. Ne4 {[%emt 0:01:18]} ({Of course not} 24. Rf1 Nd6 $15) 24... Qd5 {[%emt 0:01:28]} 25. Qh3 {[%emt 0:02:28]} ({Don't play} 25. Rf1 Nd6 26. Rd1 (26. Nxd6 Qxd6 27. Bd2 Rf8 $17) 26... Nxe4 27. dxe4 Qc6 $17) 25... Nf6 {[%emt 0:01:45]} 26. Nc3 {[%emt 0:02:29]} (26. Bh6 $11 Nxe4 27. dxe4) 26... Qd6 {[%emt 0:00:44]} 27. Ra5 {[%emt 0:00:40]} Nh5 $40 {[%emt 0:03:24][%mdl 128] White needs to defend precisely.} 28. Ne4 {[%emt 0:04:16]} Qb6 {[%emt 0:00:01]} 29. Rc5 {[%emt 0:01:02]} Rf8 {[%emt 0:01:16]} 30. Be3 {[%emt 0:02:51]} Rae8 {[%emt 0:02:27]} (30... Qb3 $15) 31. Rcc1 $11 {[%emt 0:05:19]} Qxb2 {[%emt 0:03:37]} 32. Nd6 {[%emt 0:00:17]} (32. Bc5 $5 {[%cal Rc5f8]}) 32... Re7 {[%emt 0:01:02] White should prevent ...Nf4.} 33. Nc4 {[%emt 0:01:15] [#]} (33. Bc5 $11) 33... Qb5 $1 $17 {[%emt 0:01:18]} 34. Bg5 {[%emt 0:00:44]} (34. g3 $17) 34... Nf4 $19 {[%emt 0:01:06][%mdl 64] Deflection} 35. Qg4 {[%emt 0:00:20] [#]} (35. Bxf4 exf4 36. Rxe6) 35... Nxd3 $1 {[%emt 0:01:12] Weighted Error Value: White=0.42/Black=0.12 (very precise)} 0-1